bitfinex/quotes_SOLUSD_20220302
["timestamp","ask_amount","ask_price","bid_price","bid_amount"]
[1646204601404,51.87275461,102.05,101.98,59.60905556]
[1646204601600,51.87275461,102.05,101.98,55.68905556]
[1646204601801,2.22210411,102.04,101.98,55.68905556]
[1646204601999,8.82719622,102.03,101.98,55.68905556]
[1646204602200,106.66719622,102.03,101.97,15.581]
[1646204602400,11.04930033,102.03,101.97,6.661]
[1646204603003,14.96930033,102.03,101.97,6.661]
[1646204603204,14.96930033,102.03,101.97,64.8919001]
[1646204603405,112.80930033,102.03,101.97,64.8919001]
[1646204603599,14.96930033,102.03,101.97,6.661]
[1646204603801,12.74719622,102.03,101.97,6.661]
[1646204604100,8.82719622,102.03,101.97,6.661]
[1646204604601,8.82719622,102.03,101.98,44.47882817]
[1646204605301,14.7118,102.04,101.98,44.47882817]
[1646204606403,72.24199512,102.04,101.94,21.18094003]
[1646204606607,72.24199512,102.04,101.94,18.6319]
[1646204606608,157.59214742,102.04,101.94,18.6319]
[1646204606804,161.51214742,102.04,101.94,14.7119]
[1646204607302,173.05214742,102.04,101.94,14.7119]
[1646204607503,173.05214742,102.04,101.95,60.82525976]
[1646204607902,71.29214742,102.04,101.95,60.82525976]
[1646204608102,14.7141,102.02,101.95,60.82525976]
[1646204608304,3.16975571,102.01,101.95,60.82525976]
[1646204609103,5.39170801,102.01,101.95,60.82525976]
[1646204609301,103.23170801,102.01,101.92,38.8869]
[1646204609501,103.23170801,102.01,101.91,3.922]
[1646204609702,109.38,102.0,101.88,3.923]
[1646204609902,113.303,102.0,101.88,3.923]
[1646204610102,2.2219523,101.99,101.88,18.6439]
[1646204610303,2.03207284,101.97,101.89,45.60688403]
[1646204610704,4.25402514,101.97,101.89,45.60688403]
[1646204611503,2.03207284,101.97,101.89,45.60688403]
[1646204612204,16.75327284,101.97,101.89,45.60688403]
[1646204612403,18.97522514,101.97,101.89,45.60688403]
[1646204612801,16.75327284,101.97,101.89,45.60688403]
[1646204613002,11.1459523,101.99,101.89,60.32738403]
[1646204613204,11.54,101.99,101.89,60.32738403]
[1646204613403,11.54,101.99,101.9,97.84]
[1646204613605,19.7165,102.01,101.9,97.84]
[1646204613808,26.2565,102.01,101.91,0.21720567]
[1646204614012,46.17826122,102.0,101.91,40.26037081]
[1646204614204,50.10126122,102.0,101.91,40.04316514]
[1646204614606,76.35826122,102.0,101.92,14.7154]
[1646204614807,76.35826122,102.0,101.93,45.60688403]
[1646204615407,2.2219523,101.99,101.93,45.60688403]
[1646204615707,14.52168961,101.98,101.93,45.60688403]
[1646204615906,14.52168961,101.98,101.9,14.7183]
[1646204616107,2.2219523,101.97,101.89,23.2265]
[1646204616908,46.17826122,101.96,101.9,48.90432172]
[1646204617311,2.2219523,101.95,101.9,48.90432172]
[1646204617709,14.52168961,101.94,101.88,24.95]
[1646204617908,14.52168961,101.94,101.87,3.924]
[1646204618510,2.2219523,101.93,101.87,3.924]
[1646204618707,43.96004504,101.92,101.87,3.924]
[1646204619112,43.96004504,101.92,101.88,40.90249774]
[1646204619508,11.54,101.94,101.88,40.90249774]
[1646204619707,2.2219523,101.92,101.88,40.90249774]
[1646204620114,5.0,101.95,101.88,40.90249774]
[1646204620511,53.95066793,101.94,101.88,40.90249774]
[1646204621312,6.7492829,101.92,101.83,24.6593]
[1646204621519,21.4775829,101.92,101.83,39.3876]
[1646204621718,2.2219523,101.91,101.83,39.3876]
[1646204621913,21.4775829,101.92,101.83,39.3876]
[1646204622316,21.4775829,101.92,101.84,45.55222846]
[1646204622514,6.7492829,101.92,101.85,14.7263]
[1646204622714,6.7492829,101.92,101.86,40.09782071]
[1646204623213,3.924,101.93,101.86,40.09782071]
[1646204623415,11.54,101.95,101.87,97.84]
[1646204623616,26.2635,101.96,101.86,42.64686074]
[1646204623814,11.54,101.96,101.86,42.64686074]
[1646204624214,59.68741869,101.97,101.86,66.57606164]
[1646204624416,59.68741869,101.97,101.87,98.12129405]
[1646204624618,8.924,101.98,101.89,97.84]
[1646204625419,8.924,101.98,101.89,100.38904003]
[1646204625618,63.27219937,102.0,101.91,97.84]
[1646204625819,59.34819937,102.0,101.92,54.81272071]
[1646204626017,14.7164,102.01,101.92,54.81272071]
[1646204626218,3.923,102.02,101.92,54.81272071]
[1646204626422,15.463,102.02,101.92,54.81272071]
[1646204626820,113.303,102.02,101.92,54.81272071]
[1646204627021,51.90064778,102.01,101.92,54.81272071]
[1646204627220,63.44064778,102.01,101.92,54.81272071]
[1646204627421,9.29930305,101.99,101.92,54.81272071]
[1646204629124,14.7171,102.0,101.92,54.81272071]
[1646204629322,26.2551,102.02,101.92,54.81272071]
[1646204630325,54.65150078,102.01,101.92,54.81272071]
[1646204630724,54.65150078,102.01,101.92,152.65272071]
[1646204631827,69.36710078,102.01,101.92,54.81272071]
[1646204632023,152.49150078,102.01,101.92,14.7149]
[1646204632224,164.03150078,102.01,101.9,39.5005]
[1646204632428,3.923,102.0,101.9,39.5005]
[1646204632624,11.54,101.99,101.9,39.5005]
[1646204633025,21.26835005,101.98,101.91,50.87323106]
[1646204635848,6.54845005,101.98,101.91,50.87323106]
[1646204637853,3.923,102.0,101.91,65.58993106]
[1646204637854,15.463,102.0,101.91,65.58993106]
[1646204638053,3.923,102.0,101.91,163.42993106]
[1646204638253,3.923,102.0,101.91,65.58993106]
[1646204638655,3.923,102.0,101.91,165.97897109]
[1646204638955,47.05658827,102.0,101.91,165.97897109]
[1646204639556,14.7164,102.01,101.91,165.97897109]
[1646204639953,14.44800236,102.01,101.91,165.97897109]
[1646204640357,23.6929,102.02,101.92,0.24130147]
[1646204640558,55.8153171,102.02,101.94,97.84]
[1646204640755,3.923,102.03,101.95,0.24130147]
[1646204640958,3.923,102.03,101.94,112.5505]
[1646204641156,3.923,102.03,101.95,0.24130147]
[1646204641556,3.923,102.03,101.95,109.62130147]
[1646204641755,3.923,102.03,101.98,97.84]
[1646204641958,3.923,102.03,101.99,148.71323106]
[1646204642356,3.923,102.03,101.99,50.87323106]
[1646204642757,3.923,102.03,101.97,14.707]
[1646204642959,3.923,102.03,101.94,49.9287]
[1646204643160,3.923,102.03,101.94,37.64254003]
[1646204643358,3.923,102.04,101.94,26.10254003]
[1646204643560,18.6342,102.04,101.94,26.10254003]
[1646204643759,18.6342,102.04,101.95,59.86382105]
[1646204643760,51.917162,102.03,101.95,59.86382105]
[1646204644159,51.917162,102.03,101.95,74.57372105]
[1646204644563,51.917162,102.03,101.97,123.12622812]
[1646204644860,14.709,102.06,101.97,123.12622812]
[1646204645860,50.6714141,102.05,101.97,123.12622812]
[1646204646063,50.6714141,102.05,101.97,137.83422812]
[1646204646861,26.246,102.08,101.97,137.83422812]
[1646204647064,26.246,102.08,101.97,140.38326815]
[1646204647261,26.246,102.08,101.97,151.92326815]
[1646204647863,53.46990591,102.07,101.97,151.92326815]
[1646204648265,53.46990591,102.07,101.97,166.68786815]
[1646204648863,68.17660591,102.07,101.97,166.68786815]
[1646204649063,68.17660591,102.07,101.97,152.59882812]
[1646204649464,68.17660591,102.07,101.97,54.75882812]
[1646204650264,14.7082,102.06,101.97,39.99422812]
[1646204650465,7.73004492,102.05,101.97,39.99422812]
[1646204650865,9.95202675,102.05,101.97,39.99422812]
[1646204651067,7.73004492,102.05,101.97,39.99422812]
[1646204651367,119.33202675,102.05,101.96,47.5993]
[1646204651570,3.92,102.04,101.96,47.5993]
[1646204651769,11.54,102.03,101.91,99.9483]
[1646204651968,13.76198183,102.03,101.91,147.3883]
[1646204652183,52.17001983,102.02,101.92,43.00237842]
[1646204652370,54.39200166,102.02,101.92,140.84237842]
[1646204652571,9.029931,102.0,101.92,43.00237842]
[1646204653170,9.029931,102.0,101.93,14.7131]
[1646204653569,9.029931,102.0,101.94,42.14767075]
[1646204655274,3.922,102.02,101.94,154.69967075]
[1646204655474,61.3447,102.04,101.94,56.85967075]
[1646204656174,54.53790705,102.03,101.94,56.85967075]
[1646204656374,69.25030705,102.03,101.94,42.14767075]
[1646204656574,152.37790705,102.03,101.94,42.14767075]
[1646204656774,103.98398183,102.02,101.93,22.7484]
[1646204656975,109.38,102.01,101.91,48.458]
[1646204657176,3.923,102.0,101.91,48.458]
[1646204657374,129.63065691,102.0,101.89,22.9285]
[1646204657574,117.13593874,102.0,101.89,22.9285]
[1646204657776,106.72402561,101.99,101.89,71.70940724]
[1646204658076,13.76198183,101.98,101.89,71.70940724]
[1646204658276,54.53790705,101.97,101.89,71.70940724]
[1646204658878,56.75988888,101.97,101.89,71.70940724]
[1646204659076,71.48168888,101.97,101.89,71.70940724]
[1646204660284,69.25970705,101.97,101.89,71.70940724]
[1646204661706,3.924,101.98,101.89,186.81684727]
[1646204661906,51.377,102.0,101.9,0.33762068]
[1646204662311,3.924,102.0,101.9,2.88666071]
[1646204662509,3.923,102.03,101.91,97.84]
[1646204662709,53.64651429,102.02,101.94,48.78090724]
[1646204662908,7.55343654,102.0,101.94,48.78090724]
[1646204663107,14.7133,102.03,101.94,48.78090724]
[1646204663108,3.922,102.02,101.94,146.62090724]
[1646204663307,14.7133,102.03,101.94,48.78090724]
[1646204663911,3.922,102.04,101.94,66.04134727]
[1646204664110,3.922,102.04,101.95,97.84]
[1646204664310,10.57688866,102.03,101.96,134.20914193]
[1646204665810,3.922,102.04,101.96,134.20914193]
[1646204666009,63.09,102.05,101.96,134.20914193]
[1646204666810,53.57712403,102.04,101.96,134.20914193]
[1646204667011,68.28812403,102.04,101.96,36.36914193]
[1646204667211,53.57712403,102.04,101.96,36.36914193]
[1646204668011,112.5527,102.03,101.96,36.36914193]
[1646204668213,97.84,102.03,101.94,28.1528]
[1646204668412,2.22198183,102.02,101.94,23.1528]
[1646204668614,13.76198183,102.02,101.94,23.1528]
[1646204669012,2.22198183,102.01,101.94,23.1528]
[1646204669214,7.6228268,102.0,101.94,71.32873941]
[1646204669413,7.6228268,102.0,101.94,48.17593941]
[1646204669813,9.84480863,102.0,101.92,24.6213]
[1646204670415,97.84,101.99,101.9,22.7906]
[1646204670614,11.54,101.99,101.9,22.7906]
[1646204670814,17.68498183,101.99,101.9,22.7906]
[1646204671013,53.57712403,101.98,101.91,49.59995038]
[1646204671213,65.11712403,101.98,101.91,49.59995038]
[1646204672016,65.11712403,101.98,101.9,22.7906]
[1646204672017,162.95712403,101.98,101.87,23.252]
[1646204672214,67.33910586,101.98,101.87,121.092]
[1646204672617,71.26310586,101.98,101.87,23.252]
[1646204673014,71.26310586,101.98,101.88,60.10089251]
[1646204673214,0.756099,101.89,101.88,60.10089251]
[1646204673414,0.756099,101.89,101.88,62.63309248]
[1646204673715,1.256099,101.89,101.83,2.54904003]
[1646204674016,1.256099,101.89,101.79,47.8073]
[1646204674614,54.83322303,101.89,101.81,54.40638156]
[1646204677016,69.56582303,101.89,101.81,54.40638156]
[1646204677317,71.78780486,101.89,101.81,54.40638156]
[1646204678216,14.7341,101.88,101.81,54.40638156]
[1646204678516,7.6228268,101.87,101.81,54.40638156]
[1646204678917,7.6228268,101.87,101.8,10.0]
[1646204679320,24.58030863,101.87,101.8,10.0]
[1646204679517,133.96030863,101.87,101.8,10.0]
[1646204679919,192.48030863,101.87,101.8,10.0]
[1646204680119,3.927,101.86,101.74,45.809]
[1646204680325,109.38,101.85,101.74,45.809]
[1646204680518,13.76198183,101.85,101.74,45.809]
[1646204680720,99.34783684,101.82,101.73,5.0]
[1646204680923,102.08257534,101.8,101.7,1.0]
[1646204681120,11.54,101.79,101.7,1.0]
[1646204681322,37.67101992,101.79,101.7,1.0]
[1646204681520,57.85139743,101.79,101.7,1.0]
[1646204681721,14.7515,101.77,101.7,1.0]
[1646204681920,11.54,101.76,101.7,1.0]
[1646204682322,11.54,101.76,101.7,55.02709154]
[1646204682520,56.76625287,101.79,101.7,55.02709154]
[1646204682521,3.931,101.78,101.7,55.02709154]
[1646204682722,11.54,101.78,101.67,10.89103892]
[1646204682925,116.65569844,101.78,101.67,2.54904003]
[1646204683123,57.35527796,101.77,101.66,2.86]
[1646204683322,11.54,101.76,101.66,2.86]
[1646204683524,3.932,101.75,101.65,50.0]
[1646204683723,3.932,101.75,101.66,48.13323797]
[1646204683724,11.54,101.74,101.66,48.13323797]
[1646204684926,14.7543,101.76,101.66,48.13323797]
[1646204685127,11.54,101.76,101.66,48.13323797]
[1646204685325,24.5132,101.77,101.66,48.13323797]
[1646204685932,36.0532,101.77,101.66,48.13323797]
[1646204686528,24.5132,101.77,101.66,50.1788586]
[1646204686729,15.472,101.79,101.66,50.1788586]
[1646204686938,15.472,101.79,101.67,2.49187053]
[1646204687129,15.472,101.79,101.66,76.49182209]
[1646204687330,11.54,101.79,101.67,2.54904003]
[1646204687529,51.2383,101.8,101.67,14.34322697]
[1646204687730,47.3063,101.8,101.67,14.34322697]
[1646204688040,34.3835,101.8,101.67,114.48115794]
[1646204688231,34.3835,101.8,101.71,53.19275271]
[1646204688831,11.54,101.8,101.71,53.19275271]
[1646204689431,11.54,101.8,101.71,151.03275271]
[1646204689632,3.931,101.82,101.72,0.25115183]
[1646204689832,48.3773,101.85,101.73,165.10783088]
[1646204690031,48.3773,101.85,101.73,167.7484169]
[1646204690232,48.3773,101.85,101.74,0.3342716]
[1646204690432,48.3773,101.85,101.74,14.42331163]
[1646204690636,48.3773,101.85,101.75,2.54904003]
[1646204691034,38.4157,101.88,101.76,157.19032525]
[1646204691234,26.8757,101.88,101.76,168.73032525]
[1646204691433,26.8757,101.88,101.77,2.88331163]
[1646204691633,22.9477,101.88,101.78,97.84]
[1646204691832,22.9477,101.88,101.8,97.84]
[1646204692033,0.756099,101.89,101.81,55.21822856]
[1646204692233,0.756099,101.89,101.82,97.84]
[1646204692433,0.756099,101.89,101.83,0.3342716]
[1646204692834,11.54,101.97,101.86,97.84]
[1646204693034,3.924,101.96,101.84,144.7403]
[1646204693238,2.33258077,101.95,101.85,50.72528132]
[1646204693437,0.51664107,101.93,101.85,148.56528132]
[1646204693635,0.51664107,101.93,101.85,50.72528132]
[1646204693835,25.40749844,101.93,101.85,50.72528132]
[1646204694037,2.33258077,101.91,101.85,50.72528132]
[1646204694235,28.19695801,101.92,101.85,50.72528132]
[1646204694236,24.27295801,101.92,101.85,50.72528132]
[1646204694635,35.7241922,101.94,101.85,50.72528132]
[1646204695036,11.54,101.94,101.85,50.72528132]
[1646204696336,35.7241922,101.94,101.85,50.72528132]
[1646204696839,60.61504957,101.94,101.85,50.72528132]
[1646204697040,190.91411453,101.94,101.85,50.72528132]
[1646204697238,194.83811453,101.94,101.85,50.72528132]
[1646204698039,96.99811453,101.94,101.85,50.72528132]
[1646204698241,43.99906496,101.94,101.85,50.72528132]
[1646204698640,68.18325716,101.94,101.85,50.72528132]
[1646204699643,35.7241922,101.94,101.85,50.72528132]
[1646204700243,35.7241922,101.94,101.85,53.58528132]
[1646204700743,16.95330932,101.96,101.85,53.58528132]
[1646204701045,3.924,101.96,101.85,50.72528132]
[1646204701243,28.1081922,101.96,101.85,53.58528132]
[1646204701643,30.22232635,101.96,101.85,50.72528132]
[1646204702045,28.1081922,101.96,101.85,50.72528132]
[1646204702245,24.1841922,101.96,101.85,50.72528132]
[1646204702645,39.4884,101.97,101.85,148.56528132]
[1646204702867,24.0244,101.97,101.85,160.10528132]
[1646204703067,24.0244,101.97,101.85,162.18654955]
[1646204703671,24.0244,101.97,101.87,52.70852842]
[1646204703868,24.0244,101.97,101.87,67.42712842]
[1646204704268,86.8487922,101.99,101.87,70.28712842]
[1646204704668,89.07710152,101.99,101.87,70.28712842]
[1646204704873,113.96795889,101.99,101.87,70.28712842]
[1646204705068,113.96795889,101.99,101.87,67.42712842]
[1646204705368,0.74953039,101.98,101.87,67.42712842]
[1646204705768,113.96795889,101.99,101.87,67.42712842]
[1646204705968,138.65275889,101.99,101.87,67.42712842]
[1646204706172,138.65275889,101.99,101.88,2.86]
[1646204706369,113.76190152,101.99,101.87,67.42712842]
[1646204706670,89.57770932,101.99,101.87,165.26712842]
[1646204706872,85.65370932,101.99,101.88,6.784]
[1646204707072,85.65370932,101.99,101.89,59.1368776]
[1646204707472,0.34593153,101.98,101.89,59.1368776]
[1646204708072,78.03770932,101.99,101.89,59.1368776]
[1646204708972,80.18480091,101.99,101.89,59.1368776]
[1646204709573,80.18480091,101.99,101.89,156.9768776]
[1646204709973,80.18480091,101.99,101.89,59.1368776]
[1646204710573,80.18480091,101.99,101.89,61.9968776]
[1646204710777,117.15632644,101.99,101.89,61.9968776]
[1646204710976,110.05232644,101.99,101.89,59.1368776]
[1646204711176,113.97532644,101.99,101.89,59.1368776]
[1646204712074,14.7215,101.98,101.89,59.1368776]
[1646204712274,0.70213025,101.97,101.89,59.1368776]
[1646204712474,2.93043957,101.97,101.89,59.1368776]
[1646204712874,14.7215,101.98,101.89,59.1368776]
[1646204713275,16.94980932,101.98,101.89,156.9768776]
[1646204714077,2.22830932,101.98,101.89,156.9768776]
[1646204714774,71.8854,101.99,101.89,171.6937776]
[1646204715174,49.0691,101.99,101.9,0.28626389]
[1646204715374,10.0,102.0,101.91,97.84]
[1646204715576,10.0,102.0,101.93,97.84]
[1646204716075,10.0,102.0,101.94,0.22290451]
[1646204716277,10.0,102.0,101.96,97.84]
[1646204716575,3.922,102.06,101.96,97.84]
[1646204716779,5.93000049,102.06,101.98,97.84]
[1646204716974,2.00800049,102.06,101.99,53.85767767]
[1646204717977,74.6456,102.07,101.99,53.85767767]
[1646204718275,74.6456,102.07,101.99,151.69767767]
[1646204718477,70.7256,102.07,101.99,151.69767767]
[1646204718977,70.7256,102.07,101.97,2.86]
[1646204719178,95.25716695,102.07,101.97,2.86]
[1646204719382,3.92,102.06,101.95,14.7082]
[1646204719778,22.25152553,102.05,101.95,14.7082]
[1646204719978,39.56560228,102.05,101.96,44.89698086]
[1646204720178,41.85857672,102.05,101.96,44.89698086]
[1646204720979,120.09152553,102.04,101.93,26.2511]
[1646204721182,136.82696762,102.04,101.91,14.5933]
[1646204721383,97.84,102.02,101.91,14.5933]
[1646204721581,109.38,102.02,101.91,14.5933]
[1646204721779,2.29297444,102.01,101.91,14.5933]
[1646204721983,2.29297444,102.01,101.92,45.77406202]
[1646204722383,2.29297444,102.01,101.92,143.61406202]
[1646204722781,14.7182,101.99,101.9,92.6074]
[1646204722982,122.38449997,102.01,101.89,24.5761]
[1646204722983,24.3209,102.0,101.89,24.5761]
[1646204723281,2.29297444,101.99,101.89,24.5761]
[1646204723781,2.29297444,101.99,101.9,55.55446876]
[1646204723982,14.7197,101.98,101.9,55.55446876]
[1646204724984,14.7197,101.98,101.89,24.5761]
[1646204725183,144.41242553,102.0,101.89,24.5761]
[1646204725484,14.7209,101.97,101.88,23.0295]
[1646204726082,14.7209,101.97,101.89,50.20312557]
[1646204726482,17.01387444,101.97,101.89,50.20312557]
[1646204726682,14.7209,101.97,101.89,50.20312557]
[1646204726882,14.7209,101.97,101.89,148.04312557]
[1646204727085,14.7209,101.97,101.89,50.20312557]
[1646204727683,14.7209,101.97,101.87,14.7202]
[1646204727883,14.7225,101.96,101.86,44.73294003]
[1646204728284,38.31927444,101.97,101.86,140.0239]
[1646204728484,38.31927444,101.97,101.86,42.1839]
[1646204728685,60.57079997,101.97,101.86,42.1839]
[1646204728884,60.57079997,101.97,101.87,46.8194094]
[1646204729285,36.0263,101.97,101.88,97.84]
[1646204729484,36.0263,101.97,101.87,46.8194094]
[1646204730486,38.31927444,101.97,101.87,46.8194094]
[1646204730885,14.7226,101.96,101.87,46.8194094]
[1646204731093,101.764,101.96,101.87,46.8194094]
[1646204731288,17.75697444,101.96,101.86,27.1965]
[1646204731488,17.75697444,101.96,101.86,125.0365]
[1646204731688,6.21697444,101.96,101.86,125.0365]
[1646204731887,2.29297444,101.96,101.86,125.0365]
[1646204732090,14.7229,101.96,101.86,127.58554003]
[1646204732289,14.7229,101.96,101.87,53.20185706]
[1646204732488,36.0263,101.97,101.87,53.20185706]
[1646204732690,6.21697444,101.96,101.87,53.20185706]
[1646204733488,3.924,101.96,101.87,53.20185706]
[1646204734091,14.724,101.95,101.87,53.20185706]
[1646204736516,14.724,101.95,101.87,151.04185706]
[1646204736894,14.724,101.95,101.87,53.20185706]
[1646204737094,14.724,101.95,101.87,151.04185706]
[1646204737294,14.724,101.95,101.87,53.20185706]
[1646204738497,50.7482,101.97,101.87,57.12585706]
[1646204738695,36.0263,101.97,101.87,57.12585706]
[1646204739097,36.0263,101.97,101.87,154.96585706]
[1646204739396,24.4863,101.97,101.87,169.68695706]
[1646204740001,24.4863,101.97,101.87,71.84695706]
[1646204740196,24.4863,101.97,101.89,43.37083907]
[1646204740497,24.4863,101.97,101.89,141.21083907]
[1646204740696,24.4863,101.97,101.89,43.37083907]
[1646204742096,50.93532553,101.99,101.89,155.92913907]
[1646204742301,24.7598,101.99,101.89,155.92913907]
[1646204742504,24.7598,101.99,101.9,2.54904003]
[1646204742803,22.8522,102.01,101.93,53.94985253]
[1646204743001,22.8522,102.01,101.93,151.78985253]
[1646204743204,22.8522,102.01,101.93,166.50195253]
[1646204745729,22.8522,102.01,101.93,180.87675253]
[1646204746126,39.5365,102.03,101.93,180.87675253]
[1646204746327,24.8232,102.03,101.93,180.87675253]
[1646204747329,24.8232,102.03,101.96,97.84]
[1646204747530,24.8232,102.03,101.97,56.85598336]
[1646204747731,24.8232,102.03,101.97,154.69598336]
[1646204747930,67.63156022,102.07,101.97,154.69598336]
[1646204748129,61.40565886,102.07,101.97,154.69598336]
[1646204748729,61.40565886,102.07,101.97,158.61598336]
[1646204748932,2.16922836,102.06,101.97,158.61598336]
[1646204749129,2.16922836,102.06,101.97,173.32318336]
[1646204749329,23.88168722,102.06,101.97,173.32318336]
[1646204749531,23.88168722,102.06,101.97,75.48318336]
[1646204750233,23.88168722,102.06,101.97,169.40318336]
[1646204750629,23.88168722,102.06,101.97,71.56318336]
[1646204751528,38.58968722,102.06,101.97,71.56318336]
[1646204752129,38.58968722,102.06,101.97,75.48318336]
[1646204752830,38.58968722,102.06,101.97,173.32318336]
[1646204757338,38.58968722,102.06,101.97,71.56318336]
[1646204757540,61.49587792,102.06,101.97,71.56318336]
[1646204757946,38.58968722,102.06,101.97,71.56318336]
[1646204758743,38.58968722,102.06,101.97,70.56318336]
[1646204759744,38.58968722,102.06,101.97,168.40318336]
[1646204759946,38.58968722,102.06,101.97,70.56318336]
[1646204760445,28.9057,102.07,101.97,168.40318336]
[1646204760649,24.9857,102.07,101.97,168.40318336]
[1646204760846,46.69815886,102.07,101.97,168.40318336]
[1646204761446,2.89635023,102.06,101.97,168.40318336]
[1646204764351,46.69815886,102.07,101.97,168.40318336]
[1646204764548,47.8606907,102.08,101.98,0.23834743]
[1646204764748,24.9545,102.08,102.0,97.84]
[1646204764949,24.9545,102.08,102.02,97.84]
[1646204765149,24.9545,102.08,102.01,97.84]
[1646204765348,24.9545,102.08,102.02,158.32458867]
[1646204765549,26.92520866,102.1,102.02,158.32458867]
[1646204765949,26.92520866,102.1,102.02,75.18508867]
[1646204766151,23.5601,102.1,102.04,48.34467014]
[1646204766851,59.97475886,102.1,102.01,23.3913]
[1646204767652,59.97475886,102.1,102.0,24.609]
[1646204767653,3.51063848,102.09,102.0,24.609]
[1646204767851,3.51063848,102.09,101.98,68.48119246]
[1646204767852,14.7087,102.06,101.98,68.48119246]
[1646204768053,0.33858336,102.06,101.98,45.65179246]
[1646204768255,25.61507927,102.06,101.98,45.65179246]
[1646204768452,58.86753813,102.06,101.98,45.65179246]
[1646204768852,14.24888857,102.06,101.98,45.65179246]
[1646204770058,14.7093,102.05,101.98,45.65179246]
[1646204770277,3.49818875,102.04,101.98,45.65179246]
[1646204770578,3.49818875,102.04,101.96,18.628]
[1646204770786,3.49818875,102.04,101.96,3.92]
[1646204770981,103.70849396,102.04,101.96,3.92]
[1646204771178,136.96095282,102.04,101.96,3.92]
[1646204771378,136.96095282,102.04,101.94,24.8514]
[1646204771379,62.02714352,102.04,101.94,24.8514]
[1646204771581,0.35103309,102.01,101.94,71.50854588]
[1646204771781,0.35103309,102.01,101.94,24.8514]
[1646204772781,0.35103309,102.01,101.94,76.19895936]
[1646204773386,0.35103309,102.01,101.93,14.7132]
[1646204773582,15.06643309,102.01,101.91,114.9445]
[1646204773782,0.35103309,102.01,101.91,37.3824]
[1646204773983,137.73679716,102.01,101.9,23.5853]
[1646204774382,137.73679716,102.01,101.9,72.96846213]
[1646204774582,137.73679716,102.01,101.89,14.7183]
[1646204774583,14.7209,101.97,101.89,14.7183]
[1646204774782,14.7209,101.97,101.87,24.9377]
[1646204775083,11.54,101.97,101.87,24.9377]
[1646204775483,3.49818875,101.96,101.88,44.57832784]
[1646204776185,18.22048875,101.96,101.88,44.57832784]
[1646204776384,50.6439,101.99,101.89,97.84]
[1646204776586,62.1839,101.99,101.88,44.57832784]
[1646204776783,64.55420521,101.99,101.88,44.57832784]
[1646204777085,60.63020521,101.99,101.88,44.57832784]
[1646204777485,2.88077853,101.98,101.88,44.57832784]
[1646204778082,17.60087853,101.98,101.88,59.29882784]
[1646204779789,0.96844331,101.96,101.88,44.57832784]
[1646204779987,110.34844331,101.96,101.87,49.1293]
[1646204780190,12.50844331,101.96,101.86,14.7229]
[1646204780690,34.22090217,101.96,101.85,24.3134]
[1646204780891,14.7268,101.93,101.85,24.3134]
[1646204781090,2.88077853,101.92,101.85,52.21532681]
[1646204782190,17.60887853,101.92,101.85,52.21532681]
[1646204782390,17.60887853,101.92,101.82,62.3331]
[1646204782591,14.42077853,101.92,101.82,62.3331]
[1646204783390,14.42077853,101.92,101.83,46.48839661]
[1646204783594,14.7294,101.91,101.83,61.21609661]
[1646204783990,11.54,101.93,101.83,63.76513664]
[1646204784192,47.705,101.94,101.83,82.82432908]
[1646204784390,47.705,101.94,101.83,68.09662908]
[1646204784591,47.705,101.94,101.83,49.03743664]
[1646204784791,59.245,101.94,101.83,49.03743664]
[1646204784991,3.16003365,101.93,101.83,49.03743664]
[1646204785396,3.16003365,101.93,101.83,146.87743664]
[1646204786095,3.16003365,101.93,101.85,112.5652]
[1646204786291,3.16003365,101.93,101.86,55.69260157]
[1646204787594,3.16003365,101.93,101.86,153.53260157]
[1646204787993,47.705,101.94,101.86,153.53260157]
[1646204788395,18.6472,101.96,101.86,153.53260157]
[1646204788597,98.65655886,101.97,101.86,58.2416416]
[1646204788796,76.9441,101.97,101.86,58.2416416]
[1646204788994,92.28518312,101.97,101.86,58.2416416]
[1646204789397,107.00688312,101.97,101.86,107.3081416]
[1646204789798,107.00688312,101.97,101.88,59.92797158]
[1646204790005,103.08288312,101.97,101.88,59.92797158]
[1646204790700,103.08288312,101.97,101.88,157.76797158]
[1646204791399,91.54288312,101.97,101.88,157.76797158]
[1646204791797,91.04288312,101.97,101.88,59.92797158]
[1646204791998,91.04288312,101.97,101.88,157.76797158]